fUST/lending_fUST_20251021
["ID","MTS","AMOUNT","RATE_DAILY","PERIOD"]
[391937516,1761011438932,-151.0,0.00027373,2]
[391937517,1761011438941,-4380.6500241,0.00027377,2]
[391937518,1761011438954,-2495.45590267,0.00027377,2]
[391937519,1761011438963,-1481.75205892,0.00027387,2]
[391937520,1761011438975,-12270.45979458,0.00027387,2]
[391937521,1761011438985,-200.9427517,0.00027387,2]
[391937522,1761011438995,-160.0,0.00027393,2]
[391937523,1761011439005,-558.02,0.00027397,2]
[391937524,1761011439015,-558.02,0.00027397,2]
[391937525,1761011439025,-558.02,0.00027397,2]
[391937526,1761011439035,-558.02,0.00027397,2]
[391937527,1761011439045,-558.02,0.00027397,2]
[391937528,1761011439055,-558.02,0.00027397,2]
[391937529,1761011439065,-558.02,0.00027397,2]
[391937530,1761011439074,-558.02,0.00027397,2]
[391937531,1761011439084,-558.02,0.00027397,2]
[391937532,1761011439094,-558.02,0.00027397,2]
[391937533,1761011439104,-558.02,0.00027397,2]
[391937534,1761011439114,-558.02,0.00027397,2]
[391937535,1761011439124,-558.02,0.00027397,2]
[391937536,1761011439133,-558.02,0.00027397,2]
[391937537,1761011439143,-558.02,0.00027397,2]
[391937538,1761011439153,-558.02,0.00027397,2]
[391937539,1761011439163,-558.02,0.00027397,2]
[391937540,1761011439174,-558.02,0.00027397,2]
[391937541,1761011439184,-558.02,0.00027397,2]
[391937542,1761011439193,-558.02,0.00027397,2]
[391937543,1761011439203,-558.02,0.00027397,2]
[391937544,1761011439213,-237.77205112,0.00027397,2]
[391937545,1761011439225,-320.24794888,0.00027397,2]
[391937546,1761011439234,-558.02,0.00027397,2]
[391937547,1761011439244,-558.25596408,0.00027397,2]
[391937548,1761011439254,-1000.0,0.00027397,2]
[391937549,1761011439263,-748.95799809,0.00027397,2]
[391937550,1761011439295,-251.04200191,0.00027397,2]
[391937551,1761011439308,-1000.0,0.00027397,2]
[391937552,1761011439318,-1000.0,0.00027397,2]
[391937553,1761011439328,-1000.0,0.00027397,2]
[391937554,1761011439337,-160.39451855,0.00027397,2]
[391937555,1761011439876,-455.18249544,0.00027397,2]
[391937556,1761011439889,-384.42298601,0.00027397,2]
[391937557,1761011439899,-1000.0,0.00027397,2]
[391937558,1761011439908,-218.80060384,0.00027397,2]
[391937559,1761011439920,-675.67,0.00027397,2]
[391937560,1761011439932,-105.52939616,0.00027397,2]
[391937561,1761011439942,-320.25817443,0.00027397,2]
[391937562,1761011439952,-679.74182557,0.00027397,2]
[391937563,1761011439961,-927.70619,0.00027397,2]
[391937564,1761011439972,-72.29381,0.00027397,2]
[391937565,1761011439980,-946.66578998,0.00027397,2]
[391937585,1761011441680,150.0,0.00022316,2]
[391937599,1761011443754,-553.32549655,0.00025254,10]
[391937606,1761011892090,5014.23,0.00030137,120]
[391937607,1761012322691,3590.0,0.000301,120]
[391937614,1761012595104,1350.0,0.00024,30]
[391937663,1761012632770,-203.011322,0.00024288,28]
[391937665,1761012632781,-160.82843785,0.00024288,2]
[391937667,1761012632791,-184.95270353,0.00024888,2]
[391937669,1761012632800,-209.07696921,0.00025488,2]
[391937671,1761012632810,-274.0195388,0.00025748,30]
[391937673,1761012632821,-74.14691211,0.00026008,2]
[391937735,1761012638499,-154.11238179,0.00026008,2]
[391937736,1761012638509,-233.20123488,0.00026088,2]
[391937737,1761012638518,-184.67,0.0002655,2]
[391937738,1761012638528,-203.011322,0.00026625,28]
[391937739,1761012638537,-151.100433,0.00026625,28]
[391937740,1761012638547,-257.32550056,0.00026688,2]
[391937741,1761012638557,-500.0,0.000268,2]
[391937742,1761012638567,-300.0,0.00026899,2]
[391937743,1761012638577,-1000.0,0.000269,2]
[391937744,1761012638586,-1000.0,0.000269,2]
[391937745,1761012638595,-402.9601108,0.00027,3]
[391937746,1761012638604,-203.011322,0.00027,2]
[391937747,1761012638614,-151.100433,0.00027,2]
[391937748,1761012638623,-2690.799936,0.00027,2]
[391937749,1761012638634,-8143.10259502,0.00027,2]
[391937750,1761012638645,-3442.85358505,0.00027,2]
[391937751,1761012638724,-4261.05360176,0.00027,2]
[391937752,1761012638736,-3460.80341018,0.00027,2]
[391937753,1761012638747,-161.0,0.00027,7]
[391937754,1761012638757,-161.0,0.00027,14]
[391937755,1761012638767,-434.79412276,0.00027099,2]
[391937756,1761012638776,-411.48173052,0.0002711,2]
[391937757,1761012638787,-1262.17307713,0.0002711,2]
[391937758,1761012638796,-160.0,0.00027154,2]
[391937759,1761012638806,-297.49571552,0.00027199,2]
[391937760,1761012638815,-535.49228793,0.00027199,2]
[391937761,1761012638825,-951.98628965,0.00027199,2]
[391937762,1761012638834,-497.74583569,0.00027199,2]
[391937763,1761012638844,-895.94250424,0.00027199,2]
[391937764,1761012638853,-1592.78667421,0.00027199,2]
[391937765,1761012638863,-2488.72917845,0.00027199,2]
[391937766,1761012638872,-2827.41459984,0.00027265,2]
[391937767,1761012638882,-502.72934381,0.00027273,2]
[391937768,1761012638892,-500.0,0.00027273,2]
[391937769,1761012638902,-171.42879238,0.00027273,16]
[391937770,1761012638911,-501.91646558,0.00027273,2]
[391937771,1761012638922,-501.17055692,0.00027273,2]
[391937772,1761012638932,-527.879,0.00027273,16]
[391937773,1761012638942,-29256.6837167,0.00027287,2]
[391937774,1761012638951,-1832.7,0.00027287,10]
[391937775,1761012638961,-1527.25,0.00027287,10]
[391937776,1761012638972,-281.44976624,0.00027288,2]
[391937777,1761012638982,-370000.0,0.00027297,2]
[391937778,1761012638992,-968.3075442,0.00027365,2]
[391937779,1761012639001,-339.9419315,0.00027365,2]
[391937780,1761012639012,-60937.8689477,0.00027365,2]
[391937781,1761012639021,-500.0,0.00027373,2]
[391937782,1761012639031,-572.63994276,0.00027373,2]
[391937783,1761012639041,-500.0,0.00027373,2]
[391937784,1761012639050,-500.0,0.00027373,2]
[391937785,1761012639060,-500.0,0.00027373,2]
[391937786,1761012639069,-502.63578388,0.00027373,2]
[391937787,1761012639079,-500.0,0.00027373,2]
[391937788,1761012639088,-500.0,0.00027373,2]
[391937789,1761012639097,-507.20431208,0.00027373,2]
[391937790,1761012639105,-501.04966487,0.00027373,2]
[391937791,1761012639114,-503.97116798,0.00027373,2]
[391937792,1761012639124,-501.98383308,0.00027373,2]
[391937793,1761012639133,-516.42562343,0.00027373,2]
[391937794,1761012639143,-547.58214394,0.00027373,2]
[391937795,1761012639152,-502.66033995,0.00027373,2]
[391937796,1761012639162,-500.0,0.00027373,2]
[391937797,1761012639172,-502.18635699,0.00027373,2]
[391937798,1761012639181,-305.13499957,0.00027373,2]
[391937799,1761012639191,-7314.17092918,0.00027387,2]
[391937800,1761012639200,-155.401,0.00027396,2]
[391937801,1761012639210,-1000.0,0.00027397,2]
[391937802,1761012639221,-1000.0,0.00027397,2]
[391937803,1761012639230,-1000.0,0.00027397,2]
[391937804,1761012639240,-917.87160162,0.00027397,2]
[391937805,1761012639249,-1000.0,0.00027397,2]
[391937806,1761012639259,-1000.0,0.00027397,2]
[391937807,1761012639269,-1000.0,0.00027397,2]
[391937808,1761012639279,-1000.0,0.00027397,2]
[391937809,1761012639289,-1000.0,0.00027397,2]
[391937810,1761012639299,-1000.0,0.00027397,2]
[391937811,1761012639309,-1000.0,0.00027397,2]
[391937812,1761012639318,-1000.0,0.00027397,2]
[391937813,1761012639327,-1000.0,0.00027397,2]
[391937814,1761012639336,-1000.0,0.00027397,2]
[391937815,1761012639346,-1000.0,0.00027397,2]
[391937816,1761012639356,-1000.0,0.00027397,2]
[391937817,1761012639365,-561.36144824,0.00027397,2]
[391937818,1761012639374,-1500.0,0.00027397,30]
[391937819,1761012639383,-151.0,0.00027397,2]
[391937820,1761012639392,-151.0,0.00027397,2]
[391937821,1761012639400,-151.73006775,0.00027397,2]
[391937822,1761012639409,-151.0,0.00027397,2]
[391937823,1761012639420,-151.0,0.00027397,2]
[391937824,1761012639430,-151.0,0.00027397,2]
[391937825,1761012639440,-2946.06,0.00027397,2]
[391937826,1761012639449,-2946.06,0.00027397,2]
[391937827,1761012639458,-2946.06,0.00027397,2]
[391937828,1761012639469,-2946.06,0.00027397,2]
[391937829,1761012639479,-2946.06,0.00027397,2]
[391937830,1761012639488,-2946.06,0.00027397,2]
[391937831,1761012639497,-2946.06,0.00027397,2]
[391937832,1761012639506,-2946.06,0.00027397,2]
[391937833,1761012639515,-2946.06,0.00027397,2]
[391937834,1761012639524,-2946.06,0.00027397,2]
[391937835,1761012639534,-2946.06,0.00027397,2]
[391937836,1761012639776,-2946.06,0.00027397,2]
[391937837,1761012639787,-2946.06,0.00027397,2]
[391937838,1761012639796,-2946.06,0.00027397,2]
[391937839,1761012639806,-2946.06,0.00027397,2]
[391937840,1761012639815,-2946.06,0.00027397,2]
[391937841,1761012639825,-2946.06,0.00027397,2]
[391937842,1761012639834,-2946.06,0.00027397,2]
[391937843,1761012639844,-2946.06,0.00027397,2]
[391937844,1761012639853,-2946.06,0.00027397,2]
[391937845,1761012639862,-2946.06,0.00027397,2]
[391937846,1761012639871,-2946.06,0.00027397,2]
[391937847,1761012639880,-2946.06,0.00027397,2]
[391937848,1761012639890,-2946.28363653,0.00027397,2]
[391937849,1761012639899,-792.17,0.00027397,2]
[391937850,1761012639908,-792.17,0.00027397,2]
[391937851,1761012639917,-792.17,0.00027397,2]
[391937852,1761012639926,-792.17,0.00027397,2]
[391937853,1761012639936,-792.17,0.00027397,2]
[391937854,1761012639946,-792.17,0.00027397,2]
[391937855,1761012639955,-792.17,0.00027397,2]
[391937856,1761012639964,-792.17,0.00027397,2]
[391937857,1761012639974,-792.17,0.00027397,2]
[391937858,1761012639984,-792.17,0.00027397,2]
[391937859,1761012639994,-792.17,0.00027397,2]
[391937860,1761012640003,-792.17,0.00027397,2]
[391937861,1761012640012,-792.17,0.00027397,2]
[391937862,1761012640021,-792.17,0.00027397,2]
[391937863,1761012640031,-792.17,0.00027397,2]
[391937864,1761012640040,-792.17,0.00027397,2]
[391937865,1761012640048,-792.17,0.00027397,2]
[391937866,1761012640057,-792.17,0.00027397,2]
[391937867,1761012640066,-792.17,0.00027397,2]
[391937868,1761012640075,-792.17,0.00027397,2]
[391937869,1761012640084,-792.17,0.00027397,2]
[391937870,1761012640094,-792.17,0.00027397,2]
[391937871,1761012640103,-792.17,0.00027397,2]
[391937872,1761012640111,-792.24434554,0.00027397,2]
[391937873,1761012640120,-2805.62,0.000274,2]
[391937874,1761012640130,-160.0,0.00027416,2]
[391937875,1761012640139,-249.92806897,0.00027452,2]
[391937876,1761012640147,-200.89396378,0.00027452,2]
[391937877,1761012640156,-151.0,0.00027452,2]
[391937878,1761012640165,-151.0,0.00027452,2]
[391937879,1761012640174,-151.0,0.00027452,2]
[391937880,1761012640183,-151.0,0.00027507,2]
[391937881,1761012640192,-151.0,0.00027507,2]
[391937882,1761012640201,-151.0,0.00027507,2]
[391937883,1761012640210,-161.03137585,0.00027561,2]
[391937884,1761012640219,-151.0,0.00027561,2]
[391937885,1761012640229,-151.0,0.00027561,2]
[391937886,1761012640238,-246.55921856,0.00027616,2]
[391937887,1761012640247,-247.5403656,0.00027616,2]
[391937888,1761012640256,-1500.0,0.00027671,30]
[391937889,1761012640265,-1000.0,0.00027821,5]
[391937890,1761012640275,-305.57403192,0.00027888,2]
[391937892,1761012640284,-179.67658215,0.00027895,2]
[391937895,1761012640297,-3657.08546459,0.00027911,2]
[391937898,1761012640306,-503.36300446,0.00027921,5]
[391937900,1761012640315,-1111.41961782,0.00027921,2]
[391937902,1761012640325,-1000.0,0.00027921,5]
[391937904,1761012640334,-948.06300228,0.00027921,5]
[391937906,1761012640343,-516.86152017,0.00027921,5]
[391937908,1761012640352,-1000.0,0.00027921,5]
[391937910,1761012640361,-300.0,0.00027944,30]
[391937912,1761012640370,-300.0,0.00027944,30]
[391937914,1761012640379,-300.0,0.00027944,30]
[391937916,1761012640389,-300.0,0.00027944,30]
[391937918,1761012640398,-300.0,0.00027944,30]
[391937920,1761012640407,-300.0,0.00027944,30]
[391937922,1761012640416,-300.0,0.00027944,30]
[391937924,1761012640425,-300.0,0.00027944,30]
[391937926,1761012640434,-300.0,0.00027944,30]
[391937928,1761012640443,-300.0,0.00027944,30]
[391937930,1761012640452,-300.0,0.00027944,30]
[391937932,1761012640461,-300.0,0.00027944,30]
[391937934,1761012640470,-300.0,0.00027944,30]
[391937936,1761012640479,-300.0,0.00027944,30]
[391937938,1761012640488,-300.0,0.00027944,30]
[391937939,1761012640497,-600.0,0.00027944,30]
[391937941,1761012640507,-1075.51623286,0.00027945,30]
[391937943,1761012640516,-260.0,0.00027964,2]
[391937944,1761012640525,-434.79412272,0.0002801,2]
[391937945,1761012640534,-153.0,0.00028047,2]
[391937946,1761012640543,-153.0,0.00028047,2]
[391937947,1761012640552,-153.0,0.00028047,2]
[391937948,1761012640561,-5000.0,0.00028212,2]
[391937949,1761012640569,-153.0,0.00028292,2]
[391937950,1761012640578,-153.0,0.00028292,2]
[391937951,1761012640587,-153.0,0.00028292,2]
[391937952,1761012640596,-153.0,0.00028292,2]
[391937953,1761012640604,-153.0,0.00028292,2]
[391937954,1761012640613,-153.0,0.00028292,2]
[391937955,1761012640622,-153.0,0.00028292,2]
[391937956,1761012640631,-153.0,0.00028292,2]
[391937957,1761012640639,-153.0,0.00028292,2]
[391937958,1761012640648,-153.0,0.00028292,2]
[391937959,1761012640657,-153.0,0.00028292,2]
[391937960,1761012640667,-153.0,0.00028292,2]
[391937961,1761012640676,-153.0,0.00028292,2]
[391937962,1761012640685,-1500.0,0.00028368,5]
[391937963,1761012640694,-1500.0,0.00028468,5]
[391937964,1761012640703,-1500.0,0.00028468,5]
[391937965,1761012640712,-329.69829759,0.00028488,2]
[391937966,1761012640722,-203.011322,0.000285,7]
[391937967,1761012640730,-151.100433,0.000285,7]
[391937968,1761012640740,-360.0,0.00028512,2]
[391937969,1761012640752,-535.21945786,0.00028537,2]
[391937970,1761012640761,-1378.66210699,0.00028537,2]
[391937971,1761012640770,-250.0,0.00028587,2]
[391937972,1761012640780,-386.92286135,0.0002863,2]
[391937973,1761012640792,-696.46115043,0.0002863,2]
[391937974,1761012640802,-1238.15315632,0.0002863,2]
[391937975,1761012640813,-543.63686736,0.0002863,2]
[391937976,1761012640823,-978.54636125,0.0002863,2]
[391937977,1761012640832,-1739.63797556,0.0002863,2]
[391937978,1761012640841,-2718.18433681,0.0002863,2]
[391937979,1761012640851,-2827.41459982,0.00028818,2]
[391937980,1761012640860,-3657.08546459,0.00028906,2]
[391937981,1761012640870,-2000.0,0.00028916,5]
[391937982,1761012640879,-434.79412272,0.00028921,2]
[391937983,1761012640888,-203.011322,0.00028962,28]
[391937984,1761012640897,-151.100433,0.00028962,28]
[391937985,1761012640907,-1303.9,0.00029,2]
[391937986,1761012640916,-1531.45090465,0.00029016,5]
[391937988,1761012640926,-2000.0,0.00029016,5]
[391937990,1761012640935,-203.011322,0.00029042,2]
[391937992,1761012640944,-151.100433,0.00029042,2]
[391937994,1761012640953,-460.0,0.0002906,2]
[391937995,1761012640962,-420.0,0.00029084,2]
[391937996,1761012640972,-353.82256327,0.00029088,2]
[391937998,1761012640981,-1303.9,0.00029174,2]
[391938000,1761012640991,-2805.62,0.000292,2]
[391938002,1761012641000,-160.0,0.0002924,3]
[391938004,1761012641009,-159.29,0.000293,2]
[391938006,1761012641019,-1303.9,0.00029348,2]
[391938008,1761012641029,-168.0,0.00029442,2]
[391938010,1761012641038,-2500.0,0.00029464,5]
[391938012,1761012641047,-500.0,0.00029486,7]
[391938014,1761012641057,-168.0,0.00029531,2]
[391938016,1761012641066,-560.0,0.00029608,2]
[391938018,1761012641075,-377.94682895,0.00029688,2]
[391938020,1761012641085,-12556.2,0.000297,7]
[391938022,1761012641094,-25303.29064864,0.000297,2]
[391938024,1761012641103,-292.52474511,0.00029733,2]
[391938026,1761012641113,-514.84070869,0.00029733,2]
[391938028,1761012641122,-376.0,0.00029746,7]
[391938030,1761012641131,-378.0,0.00029799,2]
[391938032,1761012641140,-509.84649574,0.00029802,7]
[391938034,1761012641150,-434.79412272,0.00029832,2]
[391938037,1761012641160,-376.0,0.00029919,2]
[391938039,1761012641170,-376.0,0.0002993,2]
[391938041,1761012641179,-185.34,0.0003,2]
[391938043,1761012641188,-1190.0,0.0003,2]
[391938045,1761012641198,-1000.0,0.0003,14]
[391938047,1761012641207,-151.0,0.0003,14]
[391938049,1761012641216,-3657.08546459,0.00030002,2]
[391938051,1761012641225,-376.0,0.00030012,2]
[391938053,1761012641234,-2019.78145741,0.00030012,5]
[391938055,1761012641243,-376.0,0.00030028,2]
[391938057,1761012641252,-371.66695258,0.00030039,4]
[391938059,1761012641262,-184.57072924,0.00030098,2]
[391938061,1761012641271,-762.0,0.000301,2]
[391938063,1761012641280,-155.0,0.00030136,2]
[391938065,1761012641289,-500.0,0.00030137,60]
[391938067,1761012641298,-500.0,0.00030137,60]
[391938069,1761012641306,-500.0,0.00030137,60]
[391938070,1761012641317,-500.0,0.00030137,60]
[391938073,1761012641327,-500.0,0.00030137,60]
[391938075,1761012641337,-500.0,0.00030137,60]
[391938076,1761012641346,-500.0,0.00030137,60]
[391938078,1761012641356,-500.0,0.00030137,60]
[391938081,1761012641366,-500.0,0.00030137,60]
[391938083,1761012641375,-500.0,0.00030137,60]
[391938085,1761012641384,-500.0,0.00030137,60]
[391938086,1761012641393,-500.0,0.00030137,60]
[391938089,1761012641403,-172.088702,0.00030137,60]
[391938091,1761012641413,-10000.0,0.00030137,2]
[391938093,1761012641422,-4001.0,0.00030137,2]
[391938095,1761012641431,-268.23249802,0.00030137,2]
[391938097,1761012641441,-482.81849643,0.00030137,2]
[391938099,1761012641453,-858.34399365,0.00030137,2]
[391938101,1761012641462,-633.45323297,0.00030137,2]
[391938103,1761012641471,-660.0,0.00030156,2]
[391938105,1761012641480,-203.011322,0.0003019,7]
[391938107,1761012641489,-151.100433,0.0003019,7]
[391938109,1761012641498,-500.0,0.00030252,7]
[391938111,1761012641507,-1337.9587561,0.00030269,15]
[391938113,1761012641516,-533.88981491,0.00030281,2]
[391938115,1761012641525,-402.07109463,0.00030288,2]
[391938117,1761012641535,-376.0,0.00030327,2]
[391938119,1761012641544,-3657.08546459,0.0003036,2]
[391938121,1761012641553,-2827.41459982,0.00030371,2]
[391938123,1761012641561,-251.32,0.00030391,2]
[391938125,1761012641571,-292.404,0.00030391,2]
[391938127,1761012641580,-150.413,0.00030391,2]
[391938129,1761012641589,-151.736,0.00030391,2]
[391938130,1761012641598,-262.513,0.00030391,2]
[391938131,1761012641607,-294.254,0.00030391,2]
[391938133,1761012641616,-150.147,0.00030391,2]
[391938135,1761012641625,-632.0,0.00030391,2]
[391938136,1761012641634,-993.117,0.00030391,2]
[391938138,1761012641644,-2164.0,0.00030391,2]
[391938139,1761012641652,-413.181,0.00030391,2]
[391938141,1761012641661,-428.678,0.00030391,2]
[391938142,1761012641670,-376.0,0.00030404,2]
[391938144,1761012641679,-2805.62,0.000305,2]
[391938145,1761012641687,-151.0,0.000305,14]
[391938147,1761012641697,-500.0,0.0003064,11]
[391938148,1761012641706,-500.0,0.0003064,11]
[391938150,1761012641715,-3657.08546459,0.00030695,2]
[391938151,1761012641724,-865.3500477,0.00030704,2]
[391938153,1761012641733,-151.0,0.00030705,30]
[391938154,1761012641744,-151.0,0.00030705,30]
[391938156,1761012641755,-161.295173,0.00030705,30]
[391938158,1761012641764,-151.0,0.00030705,30]
[391938159,1761012641773,-151.0,0.00030705,30]
[391938161,1761012641783,-152.655472,0.00030705,30]
[391938162,1761012641792,-167.780883,0.00030705,30]
[391938164,1761012641801,-153.62292,0.00030705,30]
[391938165,1761012641810,-154.834159,0.00030705,30]
[391938167,1761012641820,-152.923304,0.00030705,30]
[391938168,1761012641830,-151.0,0.0003073,30]
[391938170,1761012641838,-161.571257,0.0003073,30]
[391938171,1761012641848,-153.541629,0.0003073,30]
[391938173,1761012641857,-154.160189,0.0003073,30]
[391938175,1761012641866,-154.160189,0.0003073,30]
[391938176,1761012641875,-154.160189,0.0003073,30]
[391938178,1761012641884,-154.160189,0.0003073,30]
[391938180,1761012641893,-151.0,0.0003073,30]
[391938181,1761012641902,-720.0,0.00030738,30]
[391938183,1761012641911,-392.7178133,0.0003074,30]
[391938184,1761012641921,-392.7178133,0.0003074,30]
[391938186,1761012641930,-392.7178133,0.0003074,30]
[391938188,1761012641939,-400.7217224,0.0003074,30]
[391938189,1761012641948,-392.7178133,0.0003074,30]
[391938191,1761012641957,-783.7190328,0.0003074,30]
[391938192,1761012641967,-434.79412272,0.00030743,2]
[391938194,1761012641976,-151.0,0.00030767,30]
[391938196,1761012641985,-245.301205,0.00030767,30]
[391938197,1761012641994,-157.120058,0.00030767,30]
[391938199,1761012642003,-151.0,0.00030767,15]
[391938200,1761012642012,-4205.0,0.00030767,2]
[391938202,1761012642022,-150.0,0.00030773,5]
[391938204,1761012642031,-150.0,0.00030773,5]
[391938205,1761012642040,-553.64373807,0.00030829,2]
[391938207,1761012642049,-426.1953603,0.00030888,2]
[391938209,1761012642058,-376.0,0.00030897,7]
[391938210,1761012642068,-376.0,0.00030946,2]
[391938212,1761012642078,-3657.08546459,0.0003099,2]
[391938214,1761012642087,-1069.43868017,0.00031,120]
[391938215,1761012642095,-160.0,0.00031,30]
[391938217,1761012642105,-1237.71130154,0.00031,120]
[391938219,1761012642114,-171.60060473,0.00031,120]
[391938220,1761012642124,-189.67204078,0.00031,120]
[391938222,1761012642133,-1656.64976734,0.00031,120]
[391938224,1761012642143,-1913.2069792,0.00031,120]
[391938225,1761012642152,-169.72275025,0.00031,120]
[391938227,1761012642161,-470.16883568,0.00031,120]
[391938229,1761012642171,-454.77825491,0.00031,120]
[391938230,1761012642180,-852.82014543,0.00031,120]
[391938232,1761012642189,-401.10852396,0.00031,120]
[391938234,1761012642199,-12556.2,0.00031,7]
[391938236,1761012642208,-151.0,0.00031,30]
[391938237,1761012642218,-151.0,0.00031,30]
[391938239,1761012642228,-155.346384,0.00031,30]
[391938241,1761012642237,-154.286573,0.00031,30]
[391938242,1761012642245,-750.07998204,0.00031,14]
[391938244,1761012642255,-159.889584,0.00031,30]
[391938246,1761012642264,-152.012953,0.00031,30]
[391938247,1761012642274,-151.0,0.00031,30]
[391938249,1761012642284,-226.489352,0.00031,30]
[391938251,1761012642293,-197.77374877,0.00031,14]
[391938252,1761012642302,-168.0,0.00031021,2]
[391938254,1761012642311,-376.0,0.00031039,7]
[391938256,1761012642320,-152.44,0.00031081,15]
[391938257,1761012642329,-376.0,0.00031085,2]
[391938259,1761012642338,-203.011322,0.00031085,2]
[391938261,1761012642348,-151.100433,0.00031085,2]
[391938263,1761012642357,-621.0,0.00031091,2]
[391938264,1761012642366,-564.0,0.00031094,2]
[391938266,1761012642375,-563.0,0.00031178,2]
[391938267,1761012642384,-152.44,0.00031181,15]
[391938269,1761012642393,-402.9601108,0.000312,30]
[391938271,1761012642402,-160.0,0.0003123,4]
[391938273,1761012642411,-563.0,0.00031239,7]
[391938274,1761012642420,-152.659347,0.00031268,30]
[391938276,1761012642429,-151.0,0.00031268,30]
[391938278,1761012642438,-152.44,0.00031281,15]
[391938279,1761012642449,-203.011322,0.00031299,28]
[391938281,1761012642460,-151.100433,0.00031299,28]
[391938283,1761012642469,-300.0,0.00031321,5]
[391938285,1761012642479,-250.0,0.00031321,5]
[391938286,1761012642488,-506.74480083,0.00031327,7]
[391938288,1761012642498,-574.12855637,0.00031377,2]
[391938290,1761012642508,-152.44,0.00031381,15]
[391938291,1761012642517,-800.0,0.00031388,2]
[391938293,1761012642526,-800.0,0.00031392,2]
[391938294,1761012642535,-968.3075442,0.00031437,2]
[391938296,1761012642547,-339.9419315,0.00031437,2]
[391938298,1761012642556,-587.0,0.00031446,2]
[391938300,1761012642565,-800.0,0.00031463,2]
[391938302,1761012642574,-152.44,0.00031481,15]
[391938304,1761012642584,-450.31962598,0.00031488,2]
[391938306,1761012642593,-563.0,0.0003149,7]
[391938308,1761012642602,-556.0,0.000315,120]
[391938310,1761012642613,-563.0,0.00031549,2]
[391938311,1761012642622,-563.0,0.00031576,2]
[391938312,1761012642631,-152.44,0.00031581,15]
[391938313,1761012642639,-563.0,0.00031602,2]
[391938314,1761012642648,-434.79412272,0.00031654,2]
[391938315,1761012642657,-152.44,0.00031681,15]
[391938316,1761012642665,-158.46756255,0.00031699,30]
[391938317,1761012642674,-1197.7866385,0.00031699,30]
[391938318,1761012642683,-3657.08546459,0.00031746,2]
[391938319,1761012642692,-503.32827418,0.00031748,7]
[391938320,1761012642700,-152.44,0.00031781,15]
[391938321,1761012642710,-800.0,0.00031798,2]
[391938322,1761012642719,-1978.650582,0.000318,12]
[391938323,1761012642728,-1800.0,0.00031829,7]
[391938324,1761012642737,-800.0,0.00031853,2]
[391938325,1761012642750,-154.477788,0.00031853,30]
[391938326,1761012642759,-190.282126,0.00031853,30]
[391938327,1761012642768,-34.90728997,0.00031853,30]
[391938465,1761012644047,-155.37483603,0.00031853,30]
[391938467,1761012644057,-190.282126,0.00031853,30]
[391938469,1761012644067,-13.84403801,0.00031868,5]
[391938751,1761012646828,-161.32739826,0.00027,14]
[391938753,1761012646838,-1747.06321101,0.00027265,2]
[391938765,1761012646937,-5580.13899417,0.00027265,2]
[391938767,1761012646948,-345.35210363,0.00027287,10]
[391938770,1761012647041,-927.35789637,0.00027287,10]
[391938771,1761012647052,-7298.64210363,0.00030371,2]
[391939055,1761012892491,720.85568312,0.0003,120]
[391939076,1761013349787,1082.95,0.00030137,120]
[391939077,1761013380980,1000.0,0.0003,120]
[391939094,1761013667915,154.84513758,0.0002876,120]
[391939095,1761013692237,531.66785006,0.000237,14]
[391939102,1761013750018,2000.0,0.00030136,120]